fUST/lending_fUST_20250716
["ID","MTS","AMOUNT","RATE_DAILY","PERIOD"]
[372387328,1752622239261,-460.0,0.00019178,2]
[372387329,1752622239272,-460.0,0.00019178,2]
[372387330,1752622239281,-460.0,0.00019178,2]
[372387331,1752622239291,-460.0,0.00019178,2]
[372387332,1752622239300,-513.1203862,0.00019178,2]
[372387333,1752622239310,-460.0,0.00019178,2]
[372387334,1752622239320,-460.0,0.00019178,2]
[372387335,1752622239330,-460.0,0.00019178,2]
[372387336,1752622239343,-460.0,0.00019178,2]
[372387337,1752622239353,-460.0,0.00019178,2]
[372387338,1752622239362,-460.0,0.00019178,2]
[372387339,1752622239371,-460.0,0.00019178,2]
[372387340,1752622239381,-460.0,0.00019178,2]
[372387341,1752622239390,-460.0,0.00019178,2]
[372387342,1752622239399,-460.0,0.00019178,2]
[372387343,1752622239409,-400.18269116,0.00019178,2]
[372387344,1752622239419,-460.0,0.00019178,2]
[372387345,1752622239429,-460.0,0.00019178,2]
[372387346,1752622239438,-460.0,0.00019178,2]
[372387347,1752622239448,-164.50909739,0.00019178,2]
[372387348,1752622239458,-217.28797432,0.00019178,2]
[372387349,1752622239467,-564.52738518,0.00019178,2]
[372387350,1752622239477,-460.0,0.00019178,2]
[372387351,1752622239486,-460.0,0.00019178,2]
[372387352,1752622239495,-460.0,0.00019178,2]
[372387353,1752622239505,-460.0,0.00019178,2]
[372387354,1752622239514,-460.0,0.00019178,2]
[372387355,1752622239525,-460.0,0.00019178,2]
[372387356,1752622239535,-460.0,0.00019178,2]
[372387357,1752622239544,-460.0,0.00019178,2]
[372387358,1752622239554,-460.0,0.00019178,2]
[372387359,1752622239564,-460.0,0.00019178,2]
[372387360,1752622239576,-460.0,0.00019178,2]
[372387362,1752622239586,-179.99235221,0.00019178,2]
[372387363,1752622239595,-194.083053,0.00019178,2]
[372387366,1752622239604,-228.54568651,0.00019178,2]
[372387367,1752622239614,-460.0,0.00019178,2]
[372387370,1752622239623,-460.0,0.00019178,2]
[372387372,1752622239632,-460.0,0.00019178,2]
[372387373,1752622239643,-460.0,0.00019178,2]
[372387375,1752622239652,-460.0,0.00019178,2]
[372387377,1752622239663,-530.88,0.00019178,2]
[372387380,1752622239672,-460.0,0.00019178,2]
[372387381,1752622239682,-460.0,0.00019178,2]
[372387383,1752622239691,-460.0,0.00019178,2]
[372387386,1752622239701,-460.0,0.00019178,2]
[372387388,1752622239711,-460.0,0.00019178,2]
[372387389,1752622239720,-460.0,0.00019178,2]
[372387392,1752622239730,-460.0,0.00019178,2]
[372387394,1752622239740,-460.0,0.00019178,2]
[372387396,1752622239749,-460.0,0.00019178,2]
[372387398,1752622239760,-460.0,0.00019178,2]
[372387400,1752622239769,-495.29,0.00019178,2]
[372387402,1752622239779,-460.0,0.00019178,2]
[372387404,1752622239788,-460.0,0.00019178,2]
[372387406,1752622239798,-460.0,0.00019178,2]
[372387408,1752622239807,-460.0,0.00019178,2]
[372387410,1752622239817,-525.07,0.00019178,2]
[372387412,1752622239826,-182.80112217,0.00019178,2]
[372387414,1752622239836,-417.55114959,0.00019178,2]
[372387416,1752622239846,-460.0,0.00019178,2]
[372387418,1752622239855,-460.70644694,0.00019178,2]
[372387420,1752622239865,-460.0,0.00019178,2]
[372387422,1752622239874,-460.0,0.00019178,2]
[372387424,1752622239884,-460.0,0.00019178,2]
[372387425,1752622239894,-760.77,0.00019178,2]
[372387427,1752622239904,-460.0,0.00019178,2]
[372387430,1752622239914,-460.0,0.00019178,2]
[372387432,1752622239924,-460.0,0.00019178,2]
[372387434,1752622239934,-460.0,0.00019178,2]
[372387436,1752622239943,-460.0,0.00019178,2]
[372387438,1752622239952,-460.0,0.00019178,2]
[372387440,1752622239962,-468.87049767,0.00019178,2]
[372387442,1752622239971,-460.0,0.00019178,2]
[372387444,1752622239981,-460.0,0.00019178,2]
[372387446,1752622239990,-460.0,0.00019178,2]
[372387448,1752622240000,-460.0,0.00019178,2]
[372387450,1752622240010,-1383.48,0.00019178,2]
[372387452,1752622240020,-460.0,0.00019178,2]
[372387454,1752622240029,-460.0,0.00019178,2]
[372387456,1752622240039,-460.0,0.00019178,2]
[372387458,1752622240049,-460.0,0.00019178,2]
[372387460,1752622240058,-460.0,0.00019178,2]
[372387462,1752622240068,-303.77815698,0.00019178,2]
[372387464,1752622240077,-460.0,0.00019178,2]
[372387466,1752622240087,-460.0,0.00019178,2]
[372387468,1752622240096,-460.0,0.00019178,2]
[372387470,1752622240106,-460.0,0.00019178,2]
[372387472,1752622240115,-460.0,0.00019178,2]
[372387474,1752622240124,-460.0,0.00019178,2]
[372387476,1752622240133,-460.0,0.00019178,2]
[372387478,1752622240143,-460.0,0.00019178,2]
[372387480,1752622240152,-460.0,0.00019178,2]
[372387482,1752622240161,-460.0,0.00019178,2]
[372387484,1752622240171,-652.01,0.00019178,2]
[372387486,1752622240181,-460.0,0.00019178,2]
[372387488,1752622240190,-460.0,0.00019178,2]
[372387490,1752622240200,-460.0,0.00019178,2]
[372387491,1752622240209,-460.0,0.00019178,2]
[372387493,1752622240219,-533.84160633,0.00019178,2]
[372387495,1752622240229,-460.0,0.00019178,2]
[372387497,1752622240238,-460.0,0.00019178,2]
[372387501,1752622240257,-460.0,0.00019178,2]
[372387505,1752622240269,-460.0,0.00019178,2]
[372387507,1752622240278,-460.0,0.00019178,2]
[372387509,1752622240288,-460.0,0.00019178,2]
[372387511,1752622240297,-460.0,0.00019178,2]
[372387513,1752622240307,-402.30466088,0.00019178,2]
[372387515,1752622240316,-519.45,0.00019178,2]
[372387516,1752622240326,-460.0,0.00019178,2]
[372387518,1752622240336,-460.0,0.00019178,2]
[372387521,1752622240347,-460.0,0.00019178,2]
[372387522,1752622240357,-460.0,0.00019178,2]
[372387525,1752622240367,-581.64193957,0.00019178,2]
[372387527,1752622240377,-460.0,0.00019178,2]
[372387529,1752622240388,-460.0,0.00019178,2]
[372387531,1752622240398,-460.0,0.00019178,2]
[372387533,1752622240408,-460.0,0.00019178,2]
[372387535,1752622240419,-460.0,0.00019178,2]
[372387537,1752622240429,-460.0,0.00019178,2]
[372387539,1752622240439,-460.0,0.00019178,2]
[372387541,1752622240450,-460.0,0.00019178,2]
[372387543,1752622240460,-460.0,0.00019178,2]
[372387545,1752622240472,-460.0,0.00019178,2]
[372387547,1752622240482,-460.0,0.00019178,2]
[372387549,1752622240492,-460.0,0.00019178,2]
[372387551,1752622240502,-460.0,0.00019178,2]
[372387553,1752622240512,-460.0,0.00019178,2]
[372387555,1752622240522,-460.0,0.00019178,2]
[372387558,1752622240532,-460.0,0.00019178,2]
[372387560,1752622240542,-460.0,0.00019178,2]
[372387562,1752622240551,-460.0,0.00019178,2]
[372387564,1752622240560,-460.0,0.00019178,2]
[372387566,1752622240573,-460.0,0.00019178,2]
[372387568,1752622240583,-460.0,0.00019178,2]
[372387570,1752622240592,-460.0,0.00019178,2]
[372387571,1752622240602,-460.0,0.00019178,2]
[372387574,1752622240613,-460.0,0.00019178,2]
[372387576,1752622240622,-460.0,0.00019178,2]
[372387577,1752622240632,-460.0,0.00019178,2]
[372387579,1752622240642,-460.0,0.00019178,2]
[372387582,1752622240652,-460.0,0.00019178,2]
[372387584,1752622240662,-2306.75,0.00019178,2]
[372387586,1752622240673,-461.39516006,0.00019178,2]
[372387588,1752622240683,-460.0,0.00019178,2]
[372387590,1752622240692,-460.0,0.00019178,2]
[372387592,1752622240702,-222.37,0.00019178,2]
[372387594,1752622240711,-460.0,0.00019178,2]
[372387596,1752622240720,-460.0,0.00019178,2]
[372387598,1752622240730,-460.0,0.00019178,2]
[372387600,1752622240739,-460.0,0.00019178,2]
[372387602,1752622240750,-460.0,0.00019178,2]
[372387604,1752622240759,-460.0,0.00019178,2]
[372387606,1752622240768,-460.0,0.00019178,2]
[372387608,1752622240778,-190.444809,0.00019178,2]
[372387610,1752622240787,-739.62,0.00019442,3]
[372387612,1752622240798,-550.99,0.00019452,2]
[372387614,1752622240808,-460.0,0.00019452,2]
[372387616,1752622240818,-526.97464806,0.00019452,2]
[372387618,1752622240829,-460.0,0.00019452,2]
[372387620,1752622240839,-460.0,0.00019452,2]
[372387622,1752622240850,-482.23671838,0.00019452,2]
[372387624,1752622240860,-460.0,0.00019452,2]
[372387626,1752622240871,-460.0,0.00019452,2]
[372387628,1752622240880,-460.0,0.00019452,2]
[372387630,1752622240890,-553.8399349,0.00019452,2]
[372387632,1752622240900,-460.0,0.00019452,2]
[372387634,1752622240909,-460.0,0.00019452,2]
[372387636,1752622240921,-460.0,0.00019452,2]
[372387638,1752622240931,-460.0,0.00019452,2]
[372387640,1752622240941,-460.0,0.00019452,2]
[372387642,1752622240950,-460.0,0.00019452,2]
[372387644,1752622240960,-460.52228148,0.00019452,2]
[372387646,1752622240972,-460.0,0.00019452,2]
[372387648,1752622240981,-460.0,0.00019452,2]
[372387650,1752622240990,-411.78006495,0.00019452,2]
[372387652,1752622240999,-460.0,0.00019452,2]
[372387654,1752622241008,-460.0,0.00019452,2]
[372387656,1752622241018,-460.0,0.00019452,2]
[372387658,1752622241027,-460.0,0.00019452,2]
[372387660,1752622241036,-460.0,0.00019452,2]
[372387662,1752622241046,-760.77,0.00019452,2]
[372387664,1752622241055,-460.0,0.00019452,2]
[372387666,1752622241065,-460.0,0.00019452,2]
[372387668,1752622241074,-187.1,0.00019452,2]
[372387670,1752622241083,-460.0,0.00019452,2]
[372387672,1752622241092,-1383.48,0.00019452,2]
[372387673,1752622241102,-460.0,0.00019452,2]
[372387674,1752622241111,-228.25,0.00019452,2]
[372387675,1752622241120,-460.0,0.00019452,2]
[372387676,1752622241129,-460.0,0.00019452,2]
[372387677,1752622241139,-460.0,0.00019452,2]
[372387678,1752622241148,-652.01,0.00019452,2]
[372387679,1752622241157,-460.0,0.00019452,2]
[372387680,1752622241169,-460.0,0.00019452,2]
[372387681,1752622241178,-460.0,0.00019452,2]
[372387682,1752622241188,-460.0,0.00019452,2]
[372387683,1752622241197,-264.13584822,0.00019452,2]
[372387684,1752622241206,-460.0,0.00019452,2]
[372387685,1752622241216,-460.0,0.00019452,2]
[372387686,1752622241225,-460.0,0.00019452,2]
[372387687,1752622241234,-519.45,0.00019452,2]
[372387688,1752622241244,-460.0,0.00019452,2]
[372387689,1752622241253,-460.0,0.00019452,2]
[372387690,1752622241263,-460.0,0.00019452,2]
[372387691,1752622241273,-460.0,0.00019452,2]
[372387692,1752622241282,-460.0,0.00019452,2]
[372387693,1752622241291,-460.0,0.00019452,2]
[372387694,1752622241301,-460.0,0.00019452,2]
[372387695,1752622241320,-460.0,0.00019452,2]
[372387696,1752622241340,-581.581735,0.00019452,2]
[372387697,1752622241357,-460.0,0.00019452,2]
[372387698,1752622241473,-460.0,0.00019452,2]
[372387699,1752622241494,-460.0,0.00019452,2]
[372387700,1752622241504,-482.07672015,0.00019452,2]
[372387701,1752622241514,-460.0,0.00019452,2]
[372387702,1752622241524,-460.0,0.00019452,2]
[372387703,1752622241534,-460.0,0.00019452,2]
[372387704,1752622241543,-460.0,0.00019452,2]
[372387705,1752622241553,-460.0,0.00019452,2]
[372387706,1752622241562,-460.0,0.00019452,2]
[372387707,1752622241576,-261.68,0.00019452,2]
[372387708,1752622241585,-522.12986327,0.00019452,2]
[372387709,1752622241594,-460.0,0.00019452,2]
[372387710,1752622241604,-2306.75,0.00019452,2]
[372387711,1752622241614,-460.0,0.00019452,2]
[372387712,1752622241624,-460.0,0.00019452,2]
[372387713,1752622241634,-373.33,0.00019452,2]
[372387714,1752622241644,-460.0,0.00019452,2]
[372387715,1752622241654,-460.0,0.00019452,2]
[372387716,1752622241664,-162.38,0.00019452,2]
[372387717,1752622241675,-460.0,0.00019452,2]
[372387718,1752622241685,-742.26,0.00019716,3]
[372387719,1752622241694,-371.13,0.00019716,3]
[372387720,1752622241704,-185.56,0.00019716,3]
[372387721,1752622241714,-556.71,0.00019716,3]
[372387722,1752622241723,-493.08,0.00019716,3]
[372387723,1752622241732,-246.54,0.00019716,3]
[372387724,1752622241742,-1000.0,0.00019721,2]
[372387725,1752622241752,-460.0,0.00019726,2]
[372387726,1752622241762,-460.0,0.00019726,2]
[372387727,1752622241771,-460.0,0.00019726,2]
[372387728,1752622241781,-460.0,0.00019726,2]
[372387729,1752622241791,-460.0,0.00019726,2]
[372387730,1752622241800,-460.0,0.00019726,2]
[372387731,1752622241809,-460.0,0.00019726,2]
[372387732,1752622241818,-460.0,0.00019726,2]
[372387733,1752622241828,-460.0,0.00019726,2]
[372387734,1752622241837,-460.0,0.00019726,2]
[372387735,1752622241847,-460.0,0.00019726,2]
[372387736,1752622241856,-460.0,0.00019726,2]
[372387737,1752622241866,-460.0,0.00019726,2]
[372387738,1752622241875,-460.0,0.00019726,2]
[372387739,1752622241885,-460.0,0.00019726,2]
[372387740,1752622241894,-760.77,0.00019726,2]
[372387741,1752622241904,-596.96747782,0.00019726,2]
[372387742,1752622241913,-480.11,0.00019726,2]
[372387743,1752622241925,-460.0,0.00019726,2]
[372387744,1752622241934,-1383.48,0.00019726,2]
[372387745,1752622241944,-460.0,0.00019726,2]
[372387746,1752622241954,-460.0,0.00019726,2]
[372387747,1752622241963,-460.0,0.00019726,2]
[372387748,1752622241973,-652.01,0.00019726,2]
[372387749,1752622241982,-460.0,0.00019726,2]
[372387750,1752622241992,-460.0,0.00019726,2]
[372387751,1752622242002,-460.0,0.00019726,2]
[372387752,1752622242011,-460.0,0.00019726,2]
[372387753,1752622242021,-460.0,0.00019726,2]
[372387754,1752622242031,-519.45,0.00019726,2]
[372387755,1752622242040,-460.0,0.00019726,2]
[372387756,1752622242050,-460.0,0.00019726,2]
[372387757,1752622242059,-460.0,0.00019726,2]
[372387758,1752622242069,-564.7,0.00019726,2]
[372387759,1752622242079,-460.0,0.00019726,2]
[372387760,1752622242088,-460.0,0.00019726,2]
[372387761,1752622242098,-460.0,0.00019726,2]
[372387762,1752622242107,-460.0,0.00019726,2]
[372387764,1752622242116,-460.0,0.00019726,2]
[372387765,1752622242126,-460.0,0.00019726,2]
[372387766,1752622242136,-460.0,0.00019726,2]
[372387767,1752622242145,-460.0,0.00019726,2]
[372387768,1752622242155,-460.0,0.00019726,2]
[372387769,1752622242164,-460.0,0.00019726,2]
[372387770,1752622242175,-460.0,0.00019726,2]
[372387771,1752622242186,-2306.75,0.00019726,2]
[372387772,1752622242197,-460.0,0.00019726,2]
[372387773,1752622242206,-460.0,0.00019726,2]
[372387774,1752622242216,-512.52,0.00019726,2]
[372387775,1752622242225,-460.0,0.00019726,2]
[372387776,1752622242234,-460.0,0.00019726,2]
[372387777,1752622242244,-11261.78339872,0.00019943,2]
[372387779,1752622242253,-161.38909954,0.00019999,2]
[372387781,1752622242262,-506.24721828,0.0002,2]
[372387783,1752622242271,-460.0,0.0002,2]
[372387785,1752622242280,-460.0,0.0002,2]
[372387787,1752622242290,-460.0,0.0002,2]
[372387789,1752622242299,-505.84,0.0002,2]
[372387791,1752622242309,-261.46,0.0002,2]
[372387793,1752622242318,-460.0,0.0002,2]
[372387795,1752622242328,-232.45,0.0002,2]
[372387797,1752622242337,-460.0,0.0002,2]
[372387799,1752622242347,-460.0,0.0002,2]
[372387801,1752622242356,-760.77,0.0002,2]
[372387803,1752622242366,-460.0,0.0002,2]
[372387805,1752622242375,-1383.48,0.0002,2]
[372387807,1752622242385,-460.0,0.0002,2]
[372387809,1752622242393,-460.0,0.0002,2]
[372387811,1752622242403,-460.0,0.0002,2]
[372387813,1752622242412,-652.01,0.0002,2]
[372387815,1752622242424,-460.0,0.0002,2]
[372387817,1752622242433,-460.0,0.0002,2]
[372387819,1752622242443,-333.26,0.0002,2]
[372387821,1752622242452,-281.16,0.0002,2]
[372387823,1752622242461,-460.0,0.0002,2]
[372387825,1752622242471,-519.45,0.0002,2]
[372387827,1752622242480,-460.0,0.0002,2]
[372387829,1752622242490,-460.0,0.0002,2]
[372387831,1752622242499,-460.0,0.0002,2]
[372387833,1752622242509,-460.0,0.0002,2]
[372387835,1752622242518,-460.0,0.0002,2]
[372387837,1752622242528,-443.68156443,0.0002,2]
[372387839,1752622242538,-460.0,0.0002,2]
[372387841,1752622242547,-414.5517493,0.0002,2]
[372387843,1752622242556,-460.0,0.0002,2]
[372387845,1752622242566,-460.0,0.0002,2]
[372387847,1752622242578,-2306.75,0.0002,2]
[372387849,1752622242587,-568.04821469,0.0002,2]
[372387851,1752622242596,-460.0,0.0002,2]
[372387853,1752622242605,-460.0,0.0002,2]
[372387855,1752622242615,-460.0,0.0002,2]
[372387857,1752622242625,-17662.46045321,0.00020173,3]
[372387859,1752622242634,-279.524724,0.00020187,2]
[372387861,1752622242644,-500.0,0.00020268,2]
[372387863,1752622242653,-448.75880401,0.00020273,2]
[372387864,1752622242663,-460.0,0.00020273,2]
[372387866,1752622242675,-460.0,0.00020273,2]
[372387869,1752622242685,-460.0,0.00020273,2]
[372387871,1752622242698,-760.77,0.00020273,2]
[372387873,1752622242712,-460.0,0.00020273,2]
[372387876,1752622242726,-1383.48,0.00020273,2]
[372387878,1752622242738,-460.0,0.00020273,2]
[372387880,1752622242751,-460.0,0.00020273,2]
[372387883,1752622242762,-652.01,0.00020273,2]
[372387885,1752622242772,-460.0,0.00020273,2]
[372387887,1752622242783,-460.0,0.00020273,2]
[372387890,1752622242797,-460.0,0.00020273,2]
[372387892,1752622242809,-519.45,0.00020273,2]
[372387894,1752622242820,-460.0,0.00020273,2]
[372387896,1752622242832,-157.35,0.00020273,2]
[372387899,1752622242844,-460.0,0.00020273,2]
[372387901,1752622242856,-460.0,0.00020273,2]
[372387903,1752622242868,-260.94696276,0.00020273,2]
[372387905,1752622242879,-460.0,0.00020273,2]
[372387908,1752622242891,-2306.75,0.00020273,2]
[372387910,1752622242903,-460.0,0.00020273,2]
[372387912,1752622242915,-460.0,0.00020273,2]
[372387914,1752622242929,-460.0,0.00020547,2]
[372387918,1752622242940,-460.0,0.00020547,2]
[372387920,1752622242952,-460.0,0.00020547,2]
[372387922,1752622242962,-760.77,0.00020547,2]
[372387924,1752622242974,-607.67,0.00020547,2]
[372387926,1752622242985,-1383.48,0.00020547,2]
[372387929,1752622242996,-460.0,0.00020547,2]
[372387931,1752622243007,-460.0,0.00020547,2]
[372387933,1752622243019,-652.01,0.00020547,2]
[372387935,1752622243031,-460.0,0.00020547,2]
[372387937,1752622243050,-362.61,0.00020547,2]
[372387940,1752622243063,-460.0,0.00020547,2]
[372387942,1752622243074,-519.45,0.00020547,2]
[372387944,1752622243086,-460.0,0.00020547,2]
[372387946,1752622243096,-487.50296789,0.00020547,2]
[372387948,1752622243106,-460.0,0.00020547,2]
[372387950,1752622243116,-460.0,0.00020547,2]
[372387953,1752622243128,-2306.75,0.00020547,2]
[372387955,1752622243138,-460.0,0.00020547,2]
[372387957,1752622243149,-548.07927387,0.00020547,2]
[372387959,1752622243161,-520.84375,0.00020685,2]
[372387961,1752622243175,-230.76969291,0.00020685,2]
[372387964,1752622243186,-215.50840239,0.00020685,2]
[372387966,1752622243198,-838.84061749,0.00020685,2]
[372387968,1752622243209,-160.0,0.00020685,2]
[372387970,1752622243220,-468.75,0.00020685,2]
[372387972,1752622243232,-160.0,0.0002069,2]
[372387975,1752622243243,-160.0,0.0002069,2]
[372387977,1752622243254,-6549.49599549,0.00020739,2]
[372387979,1752622243265,-1680.0,0.00020792,2]
[372387981,1752622243276,-420.0,0.00020792,2]
[372387983,1752622243288,-460.0,0.00020821,2]
[372387986,1752622243301,-460.0,0.00020821,2]
[372387988,1752622243311,-460.0,0.00020821,2]
[372387990,1752622243321,-760.77,0.00020821,2]
[372387992,1752622243331,-1383.48,0.00020821,2]
[372387994,1752622243341,-460.0,0.00020821,2]
[372387996,1752622243351,-460.0,0.00020821,2]
[372387998,1752622243362,-652.01,0.00020821,2]
[372388000,1752622243373,-460.0,0.00020821,2]
[372388003,1752622243384,-460.0,0.00020821,2]
[372388005,1752622243397,-519.45,0.00020821,2]
[372388007,1752622243409,-460.0,0.00020821,2]
[372388009,1752622243420,-460.0,0.00020821,2]
[372388011,1752622243430,-460.0,0.00020821,2]
[372388013,1752622243440,-2306.75,0.00020821,2]
[372388015,1752622243451,-460.0,0.00020821,2]
[372388019,1752622243462,-249.79353952,0.000209,2]
[372388022,1752622243472,-339.86185644,0.000209,2]
[372388024,1752622243484,-178.195,0.00020924,2]
[372388026,1752622243496,-326.8,0.00020924,2]
[372388028,1752622243507,-500.0,0.00020973,2]
[372388030,1752622243518,-1246.61551416,0.00020995,2]
[372388033,1752622243529,-10000.0,0.00021,5]
[372388035,1752622243539,-9317.72446714,0.00021,2]
[372388037,1752622243549,-269.90181322,0.00021,2]
[372388039,1752622243559,-169.10995551,0.00021,10]
[372388041,1752622243574,-151159.46126533,0.00021,3]
[372388043,1752622243585,-257728.93359636,0.00021,15]
[372388045,1752622243595,-780.0,0.00021,2]
[372388048,1752622243607,-1484.52,0.00021086,3]
[372388050,1752622243618,-742.26,0.00021086,3]
[372388051,1752622243628,-371.12,0.00021086,3]
[372388053,1752622243639,-986.16,0.00021086,3]
[372388055,1752622243650,-493.08,0.00021086,3]
[372388058,1752622243660,-460.0,0.00021095,2]
[372388060,1752622243671,-460.0,0.00021095,2]
[372388062,1752622243682,-460.0,0.00021095,2]
[372388064,1752622243693,-760.77,0.00021095,2]
[372388066,1752622243703,-1383.48,0.00021095,2]
[372388069,1752622243715,-460.0,0.00021095,2]
[372388071,1752622243725,-460.0,0.00021095,2]
[372388073,1752622243736,-652.01,0.00021095,2]
[372388075,1752622243747,-460.0,0.00021095,2]
[372388077,1752622243758,-428.46,0.00021095,2]
[372388079,1752622243768,-519.45,0.00021095,2]
[372388081,1752622243779,-460.0,0.00021095,2]
[372388084,1752622243790,-169.00373509,0.00021095,2]
[372388086,1752622243800,-460.0,0.00021095,2]
[372388088,1752622243811,-2306.75,0.00021095,2]
[372388090,1752622243821,-460.0,0.00021095,2]
[372388092,1752622243831,-619.2,0.000211,2]
[372388094,1752622243843,-554.90108252,0.00021119,2]
[372388096,1752622243853,-207.4,0.00021354,2]
[372388098,1752622243863,-500.0,0.00021354,2]
[372388101,1752622243874,-500.0,0.00021354,2]
[372388103,1752622243884,-151.0,0.00021354,2]
[372388105,1752622243895,-500.0,0.00021354,2]
[372388107,1752622243906,-151.0,0.00021354,2]
[372388109,1752622243917,-500.0,0.00021354,2]
[372388111,1752622243927,-151.0,0.00021354,2]
[372388113,1752622243938,-151.0,0.00021354,2]
[372388116,1752622243948,-500.0,0.00021354,2]
[372388118,1752622243959,-500.0,0.00021354,2]
[372388120,1752622243970,-151.0,0.00021354,2]
[372388122,1752622243980,-151.0,0.00021354,2]
[372388124,1752622243990,-500.0,0.00021354,2]
[372388126,1752622244003,-151.0,0.00021354,2]
[372388128,1752622244013,-151.0,0.00021354,2]
[372388131,1752622244023,-500.0,0.00021354,2]
[372388133,1752622244034,-151.0,0.00021354,2]
[372388135,1752622244044,-151.0,0.00021354,2]
[372388137,1752622244055,-500.0,0.00021354,2]
[372388139,1752622244065,-151.0,0.00021354,2]
[372388154,1752622244200,-151.0,0.00021354,2]
[372388156,1752622244211,-500.0,0.00021354,2]
[372388158,1752622244220,-151.0,0.00021354,2]
[372388160,1752622244230,-151.0,0.00021354,2]
[372388162,1752622244239,-500.0,0.00021354,2]
[372388164,1752622244249,-151.0,0.00021354,2]
[372388166,1752622244258,-500.0,0.00021354,2]
[372388168,1752622244267,-151.0,0.00021354,2]
[372388170,1752622244277,-151.0,0.00021354,2]
[372388172,1752622244286,-500.0,0.00021354,2]
[372388174,1752622244297,-151.0,0.00021354,2]
[372388176,1752622244306,-151.0,0.00021354,2]
[372388178,1752622244316,-151.0,0.00021354,2]
[372388181,1752622244326,-151.0,0.00021354,2]
[372388183,1752622244337,-151.0,0.00021354,2]
[372388184,1752622244347,-151.0,0.00021354,2]
[372388186,1752622244357,-151.0,0.00021354,2]
[372388188,1752622244366,-151.0,0.00021354,2]
[372388190,1752622244375,-500.0,0.00021354,2]
[372388192,1752622244385,-151.0,0.00021354,2]
[372388194,1752622244394,-151.0,0.00021354,2]
[372388196,1752622244404,-151.0,0.00021354,2]
[372388198,1752622244413,-500.0,0.00021354,2]
[372388200,1752622244423,-151.0,0.00021354,2]
[372388202,1752622244432,-151.0,0.00021354,2]
[372388204,1752622244442,-500.0,0.00021354,2]
[372388206,1752622244451,-151.0,0.00021354,2]
[372388208,1752622244460,-500.0,0.00021354,2]
[372388210,1752622244470,-151.0,0.00021354,2]
[372388212,1752622244480,-151.0,0.00021354,2]
[372388214,1752622244490,-151.0,0.00021354,2]
[372388216,1752622244499,-151.0,0.00021354,2]
[372388218,1752622244509,-151.0,0.00021354,2]
[372388220,1752622244519,-151.0,0.00021354,2]
[372388222,1752622244528,-151.0,0.00021354,2]
[372388224,1752622244538,-25000.0,0.00021354,2]
[372388226,1752622244548,-151.0,0.00021354,2]
[372388228,1752622244558,-2759.0504015,0.00021354,2]
[372388230,1752622244570,-460.0,0.00021369,2]
[372388232,1752622244580,-460.0,0.00021369,2]